[Event "January 9 Late 2024"]
[Site "https://www.chess.com"]
[Date "2024.01.10"]
[Round "4"]
[White "Bryakin, Mikhail"]
[Black "Olsson, William"]
[Result "1-0"]
[Board "59"]
[TimeControl "180+1"]
[WhiteFideId "4165314"]
[BlackFideId "1741721"]
[WhiteElo "2833"]
[BlackElo "2571"]
[WhiteTeam "SRB"]
[BlackTeam "SWE"]
[WhiteClock "0:01:17"]
[BlackClock "0:00:00"]

1. e4 {[%clk 0:03:00]}  c5 {[%clk 0:02:58]} 2. d4 {[%clk 0:03:00]}  cxd4 {[%clk 0:02:57]} 3. Qxd4 {[%clk 0:03:01]}  Nc6 {[%clk 0:02:57]} 4. Qd3 {[%clk 0:02:57]}  g6 {[%clk 0:02:56]} 5. Nc3 {[%clk 0:02:56]}  Bg7 {[%clk 0:02:57]} 6. Nf3 {[%clk 0:02:57]}  Nf6 {[%clk 0:02:57]} 7. Be2 {[%clk 0:02:56]}  O-O {[%clk 0:02:57]} 8. O-O {[%clk 0:02:56]}  d6 {[%clk 0:02:42]} 9. Nd5 {[%clk 0:02:56]}  Bg4 {[%clk 0:02:37]} 10. c3 {[%clk 0:02:54]}  Bxf3 {[%clk 0:02:17]} 11. Qxf3 {[%clk 0:02:50]}  Qd7 {[%clk 0:02:12]} 12. Nxf6+ {[%clk 0:02:44]}  Bxf6 {[%clk 0:02:12]} 13. Bh6 {[%clk 0:02:42]}  Bg7 {[%clk 0:02:13]} 14. Bxg7 {[%clk 0:02:40]}  Kxg7 {[%clk 0:02:14]} 15. Bb5 {[%clk 0:02:38]}  a6 {[%clk 0:02:13]} 16. Bxc6 {[%clk 0:02:37]}  Qxc6 {[%clk 0:02:14]} 17. h4 {[%clk 0:02:36]}  f5 {[%clk 0:02:14]} 18. Rfe1 {[%clk 0:02:29]}  e5 {[%clk 0:02:04]} 19. Rad1 {[%clk 0:02:26]}  fxe4 {[%clk 0:01:57]} 20. Qxe4 {[%clk 0:02:25]}  Qxe4 {[%clk 0:01:56]} 21. Rxe4 {[%clk 0:02:26]}  Rf6 {[%clk 0:01:56]} 22. Rc4 {[%clk 0:02:25]}  Raf8 {[%clk 0:01:55]} 23. f3 {[%clk 0:02:24]}  R8f7 {[%clk 0:01:54]} 24. Kf2 {[%clk 0:02:23]}  Rd7 {[%clk 0:01:50]} 25. Ke3 {[%clk 0:02:22]}  Kf7 {[%clk 0:01:50]} 26. Rc8 {[%clk 0:02:22]}  Ke6 {[%clk 0:01:48]} 27. Re8+ {[%clk 0:02:21]}  Re7 {[%clk 0:01:48]} 28. Rd8 {[%clk 0:02:21]}  Rd7 {[%clk 0:01:48]} 29. Re8+ {[%clk 0:02:22]}  Re7 {[%clk 0:01:49]} 30. Rb8 {[%clk 0:02:22]}  Rf4 {[%clk 0:01:45]} 31. g3 {[%clk 0:02:21]}  Rc4 {[%clk 0:01:44]} 32. Rd3 {[%clk 0:02:17]}  Rc6 {[%clk 0:01:42]} 33. b3 {[%clk 0:02:15]}  Rcc7 {[%clk 0:01:38]} 34. c4 {[%clk 0:02:15]}  Rf7 {[%clk 0:01:27]} 35. Ke4 {[%clk 0:02:15]}  Ke7 {[%clk 0:01:11]} 36. Rd5 {[%clk 0:02:13]}  Ke6 {[%clk 0:01:10]} 37. Re8+ {[%clk 0:02:12]}  Rfe7 {[%clk 0:01:10]} 38. Rd8 {[%clk 0:02:13]}  Red7 {[%clk 0:01:09]} 39. Re8+ {[%clk 0:02:13]}  Re7 {[%clk 0:01:09]} 40. Rb8 {[%clk 0:02:13]}  Rf7 {[%clk 0:01:07]} 41. a3 {[%clk 0:02:07]}  Rf6 {[%clk 0:01:03]} 42. Re8+ {[%clk 0:02:06]}  Kd7 {[%clk 0:01:01]} 43. Rexe5 {[%clk 0:02:02]}  Rc8 {[%clk 0:00:55]} 44. Ke3 {[%clk 0:01:58]}  b5 {[%clk 0:00:50]} 45. Re4 {[%clk 0:01:56]}  bxc4 {[%clk 0:00:49]} 46. Rxc4 {[%clk 0:01:57]}  Re8+ {[%clk 0:00:41]} 47. Re4 {[%clk 0:01:56]}  Rc8 {[%clk 0:00:41]} 48. Rc4 {[%clk 0:01:56]}  Re8+ {[%clk 0:00:40]} 49. Kf2 {[%clk 0:01:54]}  Rfe6 {[%clk 0:00:40]} 50. g4 {[%clk 0:01:48]}  Re2+ {[%clk 0:00:38]} 51. Kg3 {[%clk 0:01:49]}  R2e3 {[%clk 0:00:38]} 52. Rcd4 {[%clk 0:01:47]}  R8e6 {[%clk 0:00:37]} 53. Rd3 {[%clk 0:01:46]}  Re1 {[%clk 0:00:37]} 54. Ra5 {[%clk 0:01:45]}  h6 {[%clk 0:00:28]} 55. g5 {[%clk 0:01:42]}  hxg5 {[%clk 0:00:25]} 56. hxg5 {[%clk 0:01:43]}  Rg1+ {[%clk 0:00:19]} 57. Kf4 {[%clk 0:01:44]}  Re8 {[%clk 0:00:13]} 58. Rxa6 {[%clk 0:01:28]}  Re6 {[%clk 0:00:13]} 59. Ra7+ {[%clk 0:01:28]}  Kd8 {[%clk 0:00:13]} 60. Rf7 {[%clk 0:01:27]}  Ra1 {[%clk 0:00:03]} 61. b4 {[%clk 0:01:26]}  Rc1 {[%clk 0:00:02]} 62. Rf6 {[%clk 0:01:26]}  Rc4+ {[%clk 0:00:02]} 63. Kg3 {[%clk 0:01:25]}  Re5 {[%clk 0:00:03]} 64. Rfxd6+ {[%clk 0:01:25]}  Kc7 {[%clk 0:00:03]} 65. Rxg6 {[%clk 0:01:26]}  Re1 {[%clk 0:00:03]} 66. b5 {[%clk 0:01:17]}  Rg1+ {[%clk 0:00:02]} 67. Kf2 {[%clk 0:01:18]}  Rb1 {[%clk 0:00:03]} 68. b6+ {[%clk 0:01:18]}  Kb7 {[%clk 0:00:03]} 69. Rd7+ {[%clk 0:01:17]}  Ka6 {[%clk 0:00:00]} 70. Ra7+ {[%clk 0:01:17]} 1-0

[Event "January 9 Late 2024"]
[Site "https://www.chess.com"]
[Date "2024.01.10"]
[Round "4"]
[White "Kandil, Ahmed"]
[Black "Tatarinov, Dmitry"]
[Result "1-0"]
[Board "66"]
[TimeControl "180+1"]
[WhiteFideId "10628401"]
[BlackFideId "24160067"]
[WhiteElo "2561"]
[BlackElo "2791"]
[WhiteTeam "EGY"]
[BlackTeam "RUS"]
[WhiteClock "0:01:59"]
[BlackClock "0:01:37"]

1. e4 {[%clk 0:03:00]}  e5 {[%clk 0:02:58]} 2. Nf3 {[%clk 0:03:00]}  Nc6 {[%clk 0:02:58]} 3. Bb5 {[%clk 0:03:00]}  a6 {[%clk 0:02:58]} 4. Ba4 {[%clk 0:03:00]}  Nf6 {[%clk 0:02:56]} 5. O-O {[%clk 0:03:01]}  Bc5 {[%clk 0:02:53]} 6. c3 {[%clk 0:02:56]}  b5 {[%clk 0:02:53]} 7. Bc2 {[%clk 0:02:55]}  d6 {[%clk 0:02:52]} 8. d4 {[%clk 0:02:55]}  Bb6 {[%clk 0:02:51]} 9. a4 {[%clk 0:02:54]}  Rb8 {[%clk 0:02:49]} 10. a5 {[%clk 0:02:53]}  Ba7 {[%clk 0:02:46]} 11. Be3 {[%clk 0:02:52]}  exd4 {[%clk 0:02:41]} 12. Nxd4 {[%clk 0:02:49]}  Nxd4 {[%clk 0:02:41]} 13. cxd4 {[%clk 0:02:50]}  O-O {[%clk 0:02:41]} 14. h3 {[%clk 0:02:46]}  Re8 {[%clk 0:02:40]} 15. Nc3 {[%clk 0:02:45]}  b4 {[%clk 0:02:40]} 16. Nd5 {[%clk 0:02:42]}  Nxe4 {[%clk 0:02:21]} 17. Qb1 {[%clk 0:02:16]}  Bf5 {[%clk 0:01:40]} 18. f3 {[%clk 0:02:11]}  c6 {[%clk 0:01:40]} 19. fxe4 {[%clk 0:02:10]}  cxd5 {[%clk 0:01:40]} 20. Rxf5 {[%clk 0:02:09]}  b3 {[%clk 0:01:38]} 21. Bd3 {[%clk 0:02:02]}  dxe4 {[%clk 0:01:38]} 22. Bc4 {[%clk 0:02:01]}  Rb4 {[%clk 0:01:37]} 23. Bxf7+ {[%clk 0:01:59]}  Kh8 {[%clk 0:01:37]} 1-0

[Event "January 9 Late 2024"]
[Site "https://www.chess.com"]
[Date "2024.01.09"]
[Round "4"]
[White "Maltsevskaya, Aleksandra"]
[Black "Sokolovsky, Yahli"]
[Result "0-1"]
[Board "68"]
[TimeControl "180+1"]
[WhiteFideId "24174041"]
[BlackFideId "2820242"]
[WhiteElo "2557"]
[BlackElo "2778"]
[WhiteTeam "POL"]
[BlackTeam "ISR"]
[WhiteClock "0:00:02"]
[BlackClock "0:00:13"]

1. Nf3 {[%clk 0:03:00]}  Nf6 {[%clk 0:02:57]} 2. g3 {[%clk 0:03:00]}  c5 {[%clk 0:02:50]} 3. Bg2 {[%clk 0:03:00]}  Nc6 {[%clk 0:02:49]} 4. O-O {[%clk 0:03:01]}  b6 {[%clk 0:02:49]} 5. d3 {[%clk 0:03:00]}  Bb7 {[%clk 0:02:50]} 6. e4 {[%clk 0:03:01]}  d6 {[%clk 0:02:50]} 7. Nbd2 {[%clk 0:03:00]}  g6 {[%clk 0:02:40]} 8. a4 {[%clk 0:02:55]}  Bg7 {[%clk 0:02:37]} 9. Nc4 {[%clk 0:02:56]}  O-O {[%clk 0:02:37]} 10. e5 {[%clk 0:02:56]}  dxe5 {[%clk 0:02:35]} 11. Nfxe5 {[%clk 0:02:57]}  Qc7 {[%clk 0:02:35]} 12. Nxc6 {[%clk 0:02:54]}  Bxc6 {[%clk 0:02:36]} 13. Bf4 {[%clk 0:02:54]}  Qb7 {[%clk 0:02:36]} 14. Bxc6 {[%clk 0:02:55]}  Qxc6 {[%clk 0:02:36]} 15. Re1 {[%clk 0:02:54]}  Nd5 {[%clk 0:02:32]} 16. Bd2 {[%clk 0:02:47]}  Rad8 {[%clk 0:02:19]} 17. Qf3 {[%clk 0:02:36]}  Nb4 {[%clk 0:02:14]} 18. Qxc6 {[%clk 0:02:35]}  Nxc6 {[%clk 0:02:15]} 19. Bc3 {[%clk 0:02:34]}  Rfe8 {[%clk 0:02:00]} 20. Kg2 {[%clk 0:02:29]}  Nd4 {[%clk 0:01:48]} 21. Bxd4 {[%clk 0:02:27]}  cxd4 {[%clk 0:01:46]} 22. f4 {[%clk 0:02:18]}  Rc8 {[%clk 0:01:45]} 23. Kf3 {[%clk 0:02:14]}  Rc6 {[%clk 0:01:45]} 24. Re4 {[%clk 0:02:09]}  e6 {[%clk 0:01:43]} 25. b3 {[%clk 0:01:47]}  a6 {[%clk 0:01:38]} 26. Ra2 {[%clk 0:01:24]}  Rec8 {[%clk 0:01:29]} 27. Re2 {[%clk 0:01:06]}  h5 {[%clk 0:01:29]} 28. Ke4 {[%clk 0:00:59]}  Kf8 {[%clk 0:01:13]} 29. Ne5 {[%clk 0:00:37]}  Rd6 {[%clk 0:01:14]} 30. Nc4 {[%clk 0:00:36]}  Rdc6 {[%clk 0:01:14]} 31. b4 {[%clk 0:00:32]}  b5 {[%clk 0:01:07]} 32. axb5 {[%clk 0:00:32]}  axb5 {[%clk 0:01:08]} 33. Na5 {[%clk 0:00:29]}  Ra6 {[%clk 0:01:01]} 34. Rb2 {[%clk 0:00:19]}  Ke8 {[%clk 0:00:59]} 35. Nb3 {[%clk 0:00:17]}  Rd6 {[%clk 0:00:54]} 36. Nc5 {[%clk 0:00:17]}  Rd5 {[%clk 0:00:52]} 37. Ra2 {[%clk 0:00:17]}  Bf8 {[%clk 0:00:53]} 38. Nb3 {[%clk 0:00:15]}  Rcd8 {[%clk 0:00:50]} 39. Ra7 {[%clk 0:00:14]}  Bxb4 {[%clk 0:00:50]} 40. Rb7 {[%clk 0:00:14]}  R8d7 {[%clk 0:00:44]} 41. Rxd7 {[%clk 0:00:13]}  Kxd7 {[%clk 0:00:44]} 42. Nxd4 {[%clk 0:00:14]}  f5+ {[%clk 0:00:45]} 43. Ke3 {[%clk 0:00:11]}  Bc5 {[%clk 0:00:46]} 44. c3 {[%clk 0:00:11]}  b4 {[%clk 0:00:47]} 45. Kf3 {[%clk 0:00:07]}  bxc3 {[%clk 0:00:44]} 46. Nxe6 {[%clk 0:00:03]}  Rxd3+ {[%clk 0:00:44]} 47. Kg2 {[%clk 0:00:03]}  Be7 {[%clk 0:00:43]} 48. Ng5 {[%clk 0:00:01]}  Rd2 {[%clk 0:00:26]} 49. Kf2 {[%clk 0:00:01]}  Bxg5 {[%clk 0:00:09]} 50. fxg5 {[%clk 0:00:02]}  Rxe2+ {[%clk 0:00:10]} 51. Kxe2 {[%clk 0:00:02]}  Ke6 {[%clk 0:00:11]} 52. Kd3 {[%clk 0:00:03]}  f4 {[%clk 0:00:12]} 53. gxf4 {[%clk 0:00:03]}  Kf5 {[%clk 0:00:12]} 54. Kxc3 {[%clk 0:00:03]}  Kxf4 {[%clk 0:00:13]} 55. Kd4 {[%clk 0:00:03]}  Kxg5 {[%clk 0:00:13]} 56. Ke3 {[%clk 0:00:04]}  Kh4 {[%clk 0:00:14]} 57. Kf3 {[%clk 0:00:02]}  Kh3 {[%clk 0:00:13]} 0-1

[Event "January 9 Late 2024"]
[Site "https://www.chess.com"]
[Date "2024.01.09"]
[Round "4"]
[White "Krzyzanowski, Marcin"]
[Black "Van Dael, Siem"]
[Result "1-0"]
[Board "69"]
[TimeControl "180+1"]
[WhiteFideId "1132199"]
[BlackFideId "1049771"]
[WhiteElo "2771"]
[BlackElo "2556"]
[WhiteTeam "POL"]
[BlackTeam "NED"]
[WhiteClock "0:01:18"]
[BlackClock "0:00:30"]

1. d4 {[%clk 0:03:00]}  Nf6 {[%clk 0:02:59]} 2. Nc3 {[%clk 0:03:00]}  d5 {[%clk 0:02:59]} 3. Bf4 {[%clk 0:03:01]}  Bf5 {[%clk 0:02:53]} 4. f3 {[%clk 0:02:59]}  h6 {[%clk 0:02:49]} 5. g4 {[%clk 0:02:58]}  Bh7 {[%clk 0:02:49]} 6. h4 {[%clk 0:02:58]}  e6 {[%clk 0:02:46]} 7. e3 {[%clk 0:02:59]}  Bd6 {[%clk 0:02:46]} 8. Nge2 {[%clk 0:02:58]}  Bxf4 {[%clk 0:02:42]} 9. Nxf4 {[%clk 0:02:59]}  g5 {[%clk 0:02:41]} 10. hxg5 {[%clk 0:02:57]}  hxg5 {[%clk 0:02:42]} 11. Nfe2 {[%clk 0:02:52]}  Nbd7 {[%clk 0:02:37]} 12. Qd2 {[%clk 0:02:51]}  Qe7 {[%clk 0:02:37]} 13. Nb5 {[%clk 0:02:45]}  Nb6 {[%clk 0:02:34]} 14. O-O-O {[%clk 0:02:25]}  a6 {[%clk 0:02:29]} 15. Na3 {[%clk 0:02:25]}  O-O-O {[%clk 0:02:26]} 16. Qa5 {[%clk 0:02:24]}  Qd6 {[%clk 0:02:15]} 17. Nc3 {[%clk 0:02:20]}  Qc6 {[%clk 0:02:09]} 18. Bd3 {[%clk 0:02:08]}  Bxd3 {[%clk 0:02:06]} 19. cxd3 {[%clk 0:02:09]}  Kb8 {[%clk 0:01:50]} 20. Kb1 {[%clk 0:02:04]}  Nbd7 {[%clk 0:01:49]} 21. Na4 {[%clk 0:02:00]}  Ka7 {[%clk 0:01:33]} 22. Rxh8 {[%clk 0:01:56]}  Rxh8 {[%clk 0:01:32]} 23. Rc1 {[%clk 0:01:57]}  b6 {[%clk 0:01:19]} 24. Rxc6 {[%clk 0:01:56]}  bxa5 {[%clk 0:01:19]} 25. Rxc7+ {[%clk 0:01:56]}  Kb8 {[%clk 0:01:18]} 26. Rc1 {[%clk 0:01:51]}  Rh3 {[%clk 0:01:15]} 27. Rf1 {[%clk 0:01:50]}  e5 {[%clk 0:01:12]} 28. Nc2 {[%clk 0:01:43]}  e4 {[%clk 0:01:10]} 29. dxe4 {[%clk 0:01:30]}  dxe4 {[%clk 0:01:11]} 30. fxe4 {[%clk 0:01:31]}  Nxe4 {[%clk 0:01:09]} 31. Kc1 {[%clk 0:01:32]}  Ndf6 {[%clk 0:01:05]} 32. Nc5 {[%clk 0:01:28]}  Nxc5 {[%clk 0:01:03]} 33. dxc5 {[%clk 0:01:29]}  Nxg4 {[%clk 0:01:00]} 34. Rxf7 {[%clk 0:01:26]}  Nxe3 {[%clk 0:00:59]} 35. Nd4 {[%clk 0:01:26]}  Nc4 {[%clk 0:00:53]} 36. Nc6+ {[%clk 0:01:19]}  Kc8 {[%clk 0:00:53]} 37. Na7+ {[%clk 0:01:19]}  Kb8 {[%clk 0:00:52]} 38. c6 {[%clk 0:01:20]}  Rh8 {[%clk 0:00:30]} 39. c7+ {[%clk 0:01:18]} 1-0

[Event "January 9 Late 2024"]
[Site "https://www.chess.com"]
[Date "2024.01.09"]
[Round "4"]
[White "Siddharth, Jagadeesh"]
[Black "Leenhouts, Koen"]
[Result "1/2-1/2"]
[Board "70"]
[TimeControl "180+1"]
[WhiteFideId "5818320"]
[BlackFideId "1008439"]
[WhiteElo "2761"]
[BlackElo "2554"]
[WhiteTeam "SGP"]
[BlackTeam "NED"]
[WhiteClock "0:00:10"]
[BlackClock "0:00:05"]

1. e4 {[%clk 0:02:56]}  e5 {[%clk 0:03:00]} 2. Nf3 {[%clk 0:02:55]}  d6 {[%clk 0:03:00]} 3. d4 {[%clk 0:02:55]}  exd4 {[%clk 0:03:01]} 4. Nxd4 {[%clk 0:02:55]}  Nf6 {[%clk 0:03:02]} 5. Nc3 {[%clk 0:02:55]}  Be7 {[%clk 0:03:02]} 6. g3 {[%clk 0:02:55]}  O-O {[%clk 0:03:02]} 7. Bg2 {[%clk 0:02:56]}  c6 {[%clk 0:03:00]} 8. O-O {[%clk 0:02:55]}  Nbd7 {[%clk 0:03:00]} 9. h3 {[%clk 0:02:51]}  Nc5 {[%clk 0:03:00]} 10. Re1 {[%clk 0:02:49]}  a5 {[%clk 0:02:57]} 11. Bf4 {[%clk 0:02:42]}  Re8 {[%clk 0:02:55]} 12. Qd2 {[%clk 0:02:41]}  Bf8 {[%clk 0:02:53]} 13. Rad1 {[%clk 0:02:40]}  Qb6 {[%clk 0:02:45]} 14. Nb3 {[%clk 0:02:34]}  Ne6 {[%clk 0:01:59]} 15. Bxd6 {[%clk 0:02:00]}  Bxd6 {[%clk 0:01:57]} 16. Qxd6 {[%clk 0:01:51]}  a4 {[%clk 0:01:57]} 17. Nd5 {[%clk 0:01:30]}  Nxd5 {[%clk 0:01:49]} 18. exd5 {[%clk 0:01:30]}  axb3 {[%clk 0:01:49]} 19. axb3 {[%clk 0:01:18]}  h6 {[%clk 0:01:18]} 20. dxe6 {[%clk 0:01:18]}  Bxe6 {[%clk 0:01:18]} 21. Ra1 {[%clk 0:01:06]}  Rxa1 {[%clk 0:01:14]} 22. Rxa1 {[%clk 0:01:06]}  Rd8 {[%clk 0:01:14]} 23. Qf4 {[%clk 0:01:05]}  Qd4 {[%clk 0:01:09]} 24. Qxd4 {[%clk 0:00:50]}  Rxd4 {[%clk 0:01:10]} 25. Bf1 {[%clk 0:00:50]}  g5 {[%clk 0:01:03]} 26. g4 {[%clk 0:00:42]}  Rd2 {[%clk 0:01:02]} 27. Rc1 {[%clk 0:00:40]}  b5 {[%clk 0:00:44]} 28. Bg2 {[%clk 0:00:36]}  c5 {[%clk 0:00:42]} 29. Be4 {[%clk 0:00:35]}  Rd4 {[%clk 0:00:40]} 30. Bf3 {[%clk 0:00:34]}  Rd2 {[%clk 0:00:38]} 31. Kf1 {[%clk 0:00:33]}  Kg7 {[%clk 0:00:34]} 32. Ke1 {[%clk 0:00:33]}  Rd6 {[%clk 0:00:34]} 33. Rd1 {[%clk 0:00:33]}  Ra6 {[%clk 0:00:34]} 34. Bd5 {[%clk 0:00:30]}  Ra2 {[%clk 0:00:28]} 35. Bxe6 {[%clk 0:00:26]}  fxe6 {[%clk 0:00:29]} 36. Rd7+ {[%clk 0:00:26]}  Kf6 {[%clk 0:00:29]} 37. Rc7 {[%clk 0:00:27]}  c4 {[%clk 0:00:23]} 38. bxc4 {[%clk 0:00:27]}  Rxb2 {[%clk 0:00:24]} 39. cxb5 {[%clk 0:00:27]}  Rxb5 {[%clk 0:00:25]} 40. Kd2 {[%clk 0:00:25]}  Rb1 {[%clk 0:00:18]} 41. Rc3 {[%clk 0:00:22]}  Ke5 {[%clk 0:00:16]} 42. Re3+ {[%clk 0:00:21]}  Kd5 {[%clk 0:00:16]} 43. c4+ {[%clk 0:00:19]}  Kd6 {[%clk 0:00:11]} 44. Rc3 {[%clk 0:00:15]}  Rh1 {[%clk 0:00:09]} 45. c5+ {[%clk 0:00:14]}  Kc6 {[%clk 0:00:09]} 46. Ke2 {[%clk 0:00:15]}  Ra1 {[%clk 0:00:03]} 47. Re3 {[%clk 0:00:14]}  Ra2+ {[%clk 0:00:03]} 48. Kf3 {[%clk 0:00:14]}  Kd5 {[%clk 0:00:03]} 49. Rc3 {[%clk 0:00:14]}  Ra6 {[%clk 0:00:03]} 50. Ke3 {[%clk 0:00:11]}  Rc6 {[%clk 0:00:03]} 51. Rd3+ {[%clk 0:00:11]}  Ke5 {[%clk 0:00:03]} 52. Rc3 {[%clk 0:00:10]}  Kd5 {[%clk 0:00:04]} 53. Ra3 {[%clk 0:00:06]}  Rxc5 {[%clk 0:00:04]} 54. Ra8 {[%clk 0:00:07]}  Rc3+ {[%clk 0:00:04]} 55. Ke2 {[%clk 0:00:07]}  Rxh3 {[%clk 0:00:05]} 56. f3 {[%clk 0:00:07]}  Rh2+ {[%clk 0:00:04]} 57. Ke3 {[%clk 0:00:07]}  h5 {[%clk 0:00:05]} 58. gxh5 {[%clk 0:00:06]}  Rxh5 {[%clk 0:00:06]} 59. Ra5+ {[%clk 0:00:07]}  Kd6 {[%clk 0:00:05]} 60. Ke4 {[%clk 0:00:07]}  Ke7 {[%clk 0:00:05]} 61. f4 {[%clk 0:00:07]}  Kf6 {[%clk 0:00:04]} 62. Rxg5 {[%clk 0:00:08]}  Rxg5 {[%clk 0:00:04]} 63. fxg5+ {[%clk 0:00:09]}  Kxg5 {[%clk 0:00:05]} 64. Ke5 {[%clk 0:00:09]}  Kg6 {[%clk 0:00:05]} 65. Kxe6 {[%clk 0:00:10]} 1/2-1/2

[Event "January 9 Late 2024"]
[Site "https://www.chess.com"]
[Date "2024.01.09"]
[Round "4"]
[White "Goltsev, Dmitry"]
[Black "Yurasov, Matfey"]
[Result "1-0"]
[Board "72"]
[TimeControl "180+1"]
[WhiteFideId "24176710"]
[BlackFideId "55617603"]
[WhiteElo "2752"]
[BlackElo "2553"]
[WhiteTeam "RUS"]
[BlackTeam "FID"]
[WhiteClock "0:00:12"]
[BlackClock "0:00:01"]

1. e4 {[%clk 0:03:00]}  e5 {[%clk 0:02:59]} 2. Nf3 {[%clk 0:03:01]}  Nf6 {[%clk 0:03:00]} 3. Nxe5 {[%clk 0:03:01]}  d6 {[%clk 0:02:58]} 4. Nf3 {[%clk 0:03:01]}  Nxe4 {[%clk 0:02:56]} 5. d3 {[%clk 0:03:02]}  Nf6 {[%clk 0:02:55]} 6. d4 {[%clk 0:03:03]}  d5 {[%clk 0:02:56]} 7. c4 {[%clk 0:03:03]}  Bd6 {[%clk 0:02:53]} 8. Nc3 {[%clk 0:03:04]}  O-O {[%clk 0:02:51]} 9. Be2 {[%clk 0:03:04]}  dxc4 {[%clk 0:02:50]} 10. Bxc4 {[%clk 0:03:05]}  Re8+ {[%clk 0:02:50]} 11. Be3 {[%clk 0:03:05]}  Ng4 {[%clk 0:02:48]} 12. O-O {[%clk 0:03:05]}  Nc6 {[%clk 0:02:12]} 13. Bxf7+ {[%clk 0:02:59]}  Kxf7 {[%clk 0:02:08]} 14. Ng5+ {[%clk 0:02:59]}  Kg6 {[%clk 0:01:54]} 15. h4 {[%clk 0:02:37]}  Nf6 {[%clk 0:01:22]} 16. h5+ {[%clk 0:02:14]}  Nxh5 {[%clk 0:01:15]} 17. g4 {[%clk 0:02:14]}  Rxe3 {[%clk 0:01:14]} 18. gxh5+ {[%clk 0:01:48]}  Kxg5 {[%clk 0:01:13]} 19. fxe3 {[%clk 0:01:47]}  Kh6 {[%clk 0:01:13]} 20. Ne4 {[%clk 0:00:56]}  Qh4 {[%clk 0:00:40]} 21. Nxd6 {[%clk 0:00:56]}  Qg3+ {[%clk 0:00:40]} 22. Kh1 {[%clk 0:00:56]}  Qh3+ {[%clk 0:00:41]} 23. Kg1 {[%clk 0:00:57]}  Qxe3+ {[%clk 0:00:41]} 24. Rf2 {[%clk 0:00:54]}  cxd6 {[%clk 0:00:40]} 25. Rc1 {[%clk 0:00:52]}  Bg4 {[%clk 0:00:16]} 26. Qxg4 {[%clk 0:00:14]}  Qxc1+ {[%clk 0:00:15]} 27. Kh2 {[%clk 0:00:14]}  Re8 {[%clk 0:00:14]} 28. Rg2 {[%clk 0:00:12]}  Re7 {[%clk 0:00:10]} 29. Qf5 {[%clk 0:00:12]}  g6 {[%clk 0:00:01]} 30. Rxg6+ {[%clk 0:00:12]} 1-0

[Event "January 9 Late 2024"]
[Site "https://www.chess.com"]
[Date "2024.01.09"]
[Round "4"]
[White "Serban, Cristian-Stefan"]
[Black "Yuan, Qingyu"]
[Result "0-1"]
[Board "76"]
[TimeControl "180+1"]
[WhiteFideId "1241443"]
[BlackFideId "8609772"]
[WhiteElo "2551"]
[BlackElo "2745"]
[WhiteTeam "ROU"]
[BlackTeam "CHN"]
[WhiteClock "0:00:00"]
[BlackClock "0:00:48"]

1. Nf3 {[%clk 0:03:00]}  d5 {[%clk 0:02:58]} 2. e3 {[%clk 0:03:01]}  c5 {[%clk 0:02:58]} 3. b3 {[%clk 0:03:00]}  f6 {[%clk 0:02:52]} 4. d4 {[%clk 0:03:00]}  e6 {[%clk 0:02:48]} 5. Bb2 {[%clk 0:02:59]}  Nc6 {[%clk 0:02:48]} 6. Nbd2 {[%clk 0:02:56]}  cxd4 {[%clk 0:02:43]} 7. exd4 {[%clk 0:02:56]}  Bd6 {[%clk 0:02:43]} 8. Be2 {[%clk 0:02:46]}  Nge7 {[%clk 0:02:41]} 9. O-O {[%clk 0:02:46]}  O-O {[%clk 0:02:41]} 10. c4 {[%clk 0:02:44]}  b6 {[%clk 0:02:41]} 11. Rc1 {[%clk 0:02:43]}  Bb7 {[%clk 0:02:41]} 12. Re1 {[%clk 0:02:41]}  Qd7 {[%clk 0:02:35]} 13. Bd3 {[%clk 0:02:36]}  Rae8 {[%clk 0:02:31]} 14. a3 {[%clk 0:02:00]}  g6 {[%clk 0:02:28]} 15. Nf1 {[%clk 0:01:53]}  Kg7 {[%clk 0:02:27]} 16. Rc2 {[%clk 0:01:51]}  g5 {[%clk 0:02:09]} 17. Rce2 {[%clk 0:01:21]}  Ng6 {[%clk 0:02:08]} 18. cxd5 {[%clk 0:00:43]}  exd5 {[%clk 0:02:06]} 19. Rxe8 {[%clk 0:00:37]}  Rxe8 {[%clk 0:02:06]} 20. g3 {[%clk 0:00:37]}  Rxe1 {[%clk 0:01:54]} 21. Qxe1 {[%clk 0:00:38]}  Nce7 {[%clk 0:01:54]} 22. Ne3 {[%clk 0:00:36]}  Bc6 {[%clk 0:01:43]} 23. a4 {[%clk 0:00:28]}  a5 {[%clk 0:01:41]} 24. Qb1 {[%clk 0:00:26]}  b5 {[%clk 0:01:35]} 25. axb5 {[%clk 0:00:24]}  Bxb5 {[%clk 0:01:35]} 26. Bf5 {[%clk 0:00:18]}  Qb7 {[%clk 0:01:29]} 27. Bc3 {[%clk 0:00:16]}  Qb6 {[%clk 0:01:24]} 28. Qa1 {[%clk 0:00:14]}  Bc7 {[%clk 0:01:21]} 29. Ne1 {[%clk 0:00:07]}  Be8 {[%clk 0:01:12]} 30. Bc2 {[%clk 0:00:06]}  Bf7 {[%clk 0:01:03]} 31. Nd3 {[%clk 0:00:06]}  Qb5 {[%clk 0:00:55]} 32. Nc5 {[%clk 0:00:05]}  Bb6 {[%clk 0:00:55]} 33. Bd3 {[%clk 0:00:03]}  Qc6 {[%clk 0:00:55]} 34. Qa4 {[%clk 0:00:02]}  Qc7 {[%clk 0:00:48]} 35. Qb4 {[%clk 0:00:00]}  axb4 {[%clk 0:00:48]} 0-1

[Event "January 9 Late 2024"]
[Site "https://www.chess.com"]
[Date "2024.01.09"]
[Round "4"]
[White "Sadovsky, Artem"]
[Black "Mekhitarian, Krikor Sevag"]
[Result "0-1"]
[Board "77"]
[TimeControl "180+1"]
[WhiteFideId "4155840"]
[BlackFideId "2107660"]
[WhiteElo "2550"]
[BlackElo "2736"]
[WhiteTeam "FID"]
[BlackTeam "BRA"]
[WhiteClock "0:00:00"]
[BlackClock "0:00:06"]

1. Nf3 {[%clk 0:03:00]}  d5 {[%clk 0:02:56]} 2. e3 {[%clk 0:03:01]}  c5 {[%clk 0:02:43]} 3. b3 {[%clk 0:02:50]}  a6 {[%clk 0:02:42]} 4. Bb2 {[%clk 0:02:50]}  Nc6 {[%clk 0:02:41]} 5. Be2 {[%clk 0:02:51]}  Bg4 {[%clk 0:02:39]} 6. O-O {[%clk 0:02:51]}  e6 {[%clk 0:02:40]} 7. d4 {[%clk 0:02:50]}  Nf6 {[%clk 0:02:36]} 8. Nbd2 {[%clk 0:02:48]}  Rc8 {[%clk 0:02:27]} 9. a3 {[%clk 0:02:46]}  cxd4 {[%clk 0:02:28]} 10. exd4 {[%clk 0:02:43]}  Bd6 {[%clk 0:02:27]} 11. Ne5 {[%clk 0:02:41]}  Bxe2 {[%clk 0:02:21]} 12. Qxe2 {[%clk 0:02:42]}  O-O {[%clk 0:02:07]} 13. f4 {[%clk 0:02:42]}  Qc7 {[%clk 0:02:06]} 14. Ndf3 {[%clk 0:02:42]}  Ne4 {[%clk 0:02:06]} 15. c4 {[%clk 0:02:40]}  f6 {[%clk 0:02:03]} 16. Nxc6 {[%clk 0:02:11]}  bxc6 {[%clk 0:02:04]} 17. g3 {[%clk 0:02:02]}  Rb8 {[%clk 0:01:58]} 18. c5 {[%clk 0:02:01]}  Be7 {[%clk 0:01:56]} 19. b4 {[%clk 0:02:01]}  a5 {[%clk 0:01:56]} 20. Nd2 {[%clk 0:01:47]}  f5 {[%clk 0:01:47]} 21. Nxe4 {[%clk 0:01:47]}  fxe4 {[%clk 0:01:43]} 22. Qg4 {[%clk 0:01:46]}  Rf5 {[%clk 0:01:39]} 23. Bc3 {[%clk 0:01:46]}  Bf6 {[%clk 0:01:33]} 24. Rab1 {[%clk 0:01:39]}  a4 {[%clk 0:01:33]} 25. Qe2 {[%clk 0:01:39]}  g5 {[%clk 0:00:49]} 26. fxg5 {[%clk 0:01:27]}  Bxg5 {[%clk 0:00:50]} 27. b5 {[%clk 0:01:07]}  cxb5 {[%clk 0:00:46]} 28. Rxb5 {[%clk 0:01:06]}  Rxb5 {[%clk 0:00:13]} 29. Qxb5 {[%clk 0:01:06]}  Qf7 {[%clk 0:00:12]} 30. Rxf5 {[%clk 0:00:40]}  Qxf5 {[%clk 0:00:13]} 31. Qf1 {[%clk 0:00:31]}  Kf7 {[%clk 0:00:08]} 32. Qe2 {[%clk 0:00:26]}  Ke7 {[%clk 0:00:06]} 33. c6 {[%clk 0:00:23]}  Kd6 {[%clk 0:00:06]} 34. Bb4+ {[%clk 0:00:23]}  Kc7 {[%clk 0:00:04]} 35. Ba5+ {[%clk 0:00:15]}  Kxc6 {[%clk 0:00:05]} 36. Qa6+ {[%clk 0:00:14]}  Kd7 {[%clk 0:00:05]} 37. Qb5+ {[%clk 0:00:12]}  Ke7 {[%clk 0:00:05]} 38. Qb7+ {[%clk 0:00:07]}  Kf8 {[%clk 0:00:03]} 39. Bb4+ {[%clk 0:00:04]}  Kg8 {[%clk 0:00:04]} 40. Qc8+ {[%clk 0:00:03]}  Kg7 {[%clk 0:00:04]} 41. Qd7+ {[%clk 0:00:02]}  Kg6 {[%clk 0:00:05]} 42. Qe8+ {[%clk 0:00:00]}  Qf7 {[%clk 0:00:06]} 0-1